Cogmind - Beta 12 X1 @@@ ROGUE MODE // 2022.07.06 @ 21:47:26 Player: Cyurio Result: Destroyed by H-77 Assassin with Coil Gun Performance ------------- Evolutions (7) 3500 Regions Visited (14) 2800 Robots Destroyed (115) 575 Value Destroyed (4760) 4760 Prototype IDs (8) 160 Alien Tech Used (0) 0 Bonus (2071) 2071 TOTAL SCORE: 13866 Bonus ------- High Alert Combat Kills 80 Follower Combat Kills 716 Entered Garrisons 400 Used RIF Installer 500 Entered DSFs 500 Friendly Fire -125 Cogmind --------- Core Integrity 0/1300 Matter 80/300 Energy 81/100 System Corruption 0% Temperature Cool (0) Movement Core (50) Location -3/Research Parts ------- > --- POWER (2) -------- (None) > --- PROPULSION (4) --- (None) > --- UTILITY (12) ----- Improved Target Analyzer > --- WEAPON (3) ------- (None) > --- INVENTORY (5) ---- Field Propulsion Array Great Axe Force Lance Peak State ------------ > --- POWER ------------ Improved Quantum Reactor > --- PROPULSION ------- Carbon-fiber Leg Enhanced Biometal Leg Enhanced Biometal Leg Wheel > --- UTILITY ---------- Large Storage Unit Improved Signal Interpreter Experimental Targeting Computer Melee Analysis Suite Experimental Core Analyzer Improved Weapon Shielding Centrium Light Armor Plating Hacking Suite Hacking Suite > --- WEAPON ----------- Enhanced Quantum Rifle KE Penetrator Scythe > --- INVENTORY -------- Improved Deuterium Engine Neutrino Core Light Quantum Reactor Improved Quantum Reactor Carbon-fiber Leg Carbon-fiber Leg Antigrav System Advanced Sensor Array Transmission Jammer Improved Medium Armor Plating System Shield Relay Coupler [NC] Enhanced Quantum Rifle Datajack Improved Remote Datajack [Rating: 98] Favorites ----------- Power Light Ion Engine Engine Light Ion Engine Power Core Micro Nuclear Core Reactor Light Antimatter Reactor Propulsion Improved Treads Treads Improved Treads Leg Carbon-fiber Leg Wheel Wheel Hover Unit Antigrav System Flight Unit Impulse Thruster Utility Large Storage Unit Device Weight Redist. System Storage Large Storage Unit Processor Improved Signal Interpreter Hackware Hacking Suite Protection Improved Core Shielding Weapon Improved Assault Rifle Energy Gun Enhanced Quantum Rifle Ballistic Gun Improved Assault Rifle Launcher Micro-nuke Launcher Slashing Weapon Scythe Piercing Weapon Force Lance Special Melee Weapon Datajack Build | -11 -10 -10 -10 -9 -8 -8 -8 -7 -6 -6 -5 -4 -4 -3 ------- Run | Scr Mat Min Exi Min Mat Gar Mat Fac Fac Gar Fac Fac DSF Res Slots Evolved 14 | . . . . . 4 . . 2 2 . 2 2 . 2 Power 1 | . . . . . . . . . . . . . . 1 Propulsion 2 | . . . . . 1 . . 1 . . . . . . Utility 10 | . . . . . 2 . . 1 2 . 2 2 . 1 Weapon 1 | . . . . . 1 . . . . . . . . . Parts Attached 169 | . 6 1 . 1 5 6 16 32 7 22 47 4 16 6 Power 17 | . . . . 1 . . 2 1 . 4 6 . 2 1 Engine 8 | . . . . 1 . . 2 . . 4 1 . . . Core 2 | . . . . . . . . 1 . . 1 . . . Reactor 7 | . . . . . . . . . . . 4 . 2 1 Propulsion 66 | . 2 . . . 1 2 8 12 4 7 17 1 9 3 Treads 18 | . 2 . . . 1 2 7 5 . . 1 . . . Leg 29 | . . . . . . . . 5 4 6 10 . 4 . Wheel 4 | . . . . . . . . 2 . 1 . . . 1 Hover 10 | . . . . . . . . . . . 6 1 1 2 Flight 5 | . . . . . . . 1 . . . . . 4 . Utility 41 | . 2 1 . . 3 1 2 5 3 7 14 2 . 1 Device 10 | . . . . . . . . 1 1 . 5 2 . 1 Storage 2 | . 1 . . . . . . . . . 1 . . . Processor 9 | . 1 1 . . . . 1 2 1 . 3 . . . Hackware 8 | . . . . . . . 1 . . 4 3 . . . Protection 12 | . . . . . 3 1 . 2 1 3 2 . . . Artifact . | . . . . . . . . . . . . . . . Weapon 45 | . 2 . . . 1 3 4 14 . 4 10 1 5 1 Energy Gun 2 | . . . . . . . . . . . 2 . . . Energy Cannon . | . . . . . . . . . . . . . . . Ballistic Gun 17 | . 2 . . . 1 2 4 6 . . 2 . . . Ballistic Cannon . | . . . . . . . . . . . . . . . Launcher 1 | . . . . . . . . . . . . . 1 . Special Weapon . | . . . . . . . . . . . . . . . Impact Weapon . | . . . . . . . . . . . . . . . Slashing Weapon 20 | . . . . . . 1 . 8 . 2 5 1 3 . Piercing Weapon 2 | . . . . . . . . . . . . . 1 1 Special Melee Weapon 3 | . . . . . . . . . . 2 1 . . . Unidentified Prototypes 8 | . 1 . . . . . 2 . . . 5 . . . Parts Lost 84 | . . . . 1 . 6 1 11 . 11 28 1 13 12 Power 13 | . . . . 1 . . . 1 . 3 4 . 2 2 Propulsion 30 | . . . . . . 2 . 5 . 5 8 1 5 4 Utility 26 | . . . . . . 3 . 3 . 2 11 . 3 4 Weapon 15 | . . . . . . 1 1 2 . 1 5 . 3 2 Highest Loss Streak 15 | . . . . 1 . 5 1 5 . 8 13 1 10 15 To Critical Strikes . | . . . . . . . . . . . . . . . Average Slot Usage (%) 91 | . 99 100 100 99 93 82 96 95 100 90 85 75 48 28 Engine 7 | . 14 14 14 13 9 9 9 5 . 4 2 . . . Treads 16 | . 27 28 28 28 27 26 26 19 . . . . . . Leg 5 | . . . . . . . . 3 26 19 11 . 3 . Wheel 1 | . . . . . . . . 5 . 1 3 . . . Hover 1 | . . . . . . . . . . . 4 17 4 6 Device 2 | . . . . . . . . . 13 5 4 12 7 5 Storage 8 | . 14 14 14 14 9 9 9 7 6 6 3 5 . . Processor 10 | . 13 14 14 14 9 3 8 8 13 13 13 10 10 4 Hackware 5 | . . . . . . . 7 7 6 14 11 10 5 1 Protection 6 | . . . . . 11 7 9 11 6 4 6 . . . Ballistic Gun 15 | . 27 28 28 28 27 24 25 12 . . 3 . . . Slashing Weapon 5 | . . . . . . 2 . 7 20 14 9 12 7 3 Naked Turns . | . . . . . . . . . . . . . . . Heaviest Build 55 | 11 29 29 29 31 40 38 39 47 37 39 55 35 32 30 Greatest Support 112 | 20 46 46 46 46 69 69 66 70 72 72 84 42 112 28 Greatest Overweight (x) 4 | . . . . . . . 1 4 . 3 3 1 2 4 Average Overweight (x) . | . . . . . . . . . . . . . . . Largest Inventory Capacity 15 | . 15 15 15 15 15 15 15 15 15 15 15 10 10 5 Average Capacity 13 | . 10 15 15 15 15 15 15 15 15 15 12 10 6 5 Most Carried 15 | . 9 9 9 11 15 15 15 15 15 15 15 10 10 5 Average Carried 12 | . 8 9 9 10 9 13 14 14 14 14 11 9 5 4 Final Capacity 15 | 8 15 15 15 15 15 15 15 15 15 15 10 10 5 5 Final Carried 15 | 6 9 9 9 10 15 15 15 15 15 15 9 10 5 4 Class Distribution -------------------- 43% | Mutant 30% | Scavenger-Mutant 10% | Tank 8% | Gunner Dominant Class ---------------- Mutant | -10/Materials Mutant | -10/Mines Mutant | -10/Exiles Mutant | -9/Mines Tank | -8/Materials Tank | -8/Garrison Gunner | -8/Materials Mutant | -7/Factory Scavenger-Mutant | -6/Factory Scavenger-Mutant | -6/Garrison Scavenger-Mutant | -5/Factory Hacker-Mutant | -4/Factory Mutant | -4/DSF Mutant | -3/Research Resources | -11 -10 -10 -10 -9 -8 -8 -8 -7 -6 -6 -5 -4 -4 -3 ----------- Run | Scr Mat Min Exi Min Mat Gar Mat Fac Fac Gar Fac Fac DSF Res Matter Collected 2909 | 200 206 82 . 148 54 285 361 803 74 183 502 . . 11 Remotely . | . . . . . . . . . . . . . . . Salvage Created 5093 | . 423 140 . 392 54 643 428 1394 202 518 888 . . 11 Parts 264 | . 27 16 . 25 3 43 24 63 5 20 34 . . 4 Haulers Intercepted 6 | . 2 . . . . . 4 . . . . . . . Recyclers Shooed 5 | . . . . 1 . . . 1 . . 3 . . . Parts Field Recycled . | . . . . . . . . . . . . . . . Retrieved Matter . | . . . . . . . . . . . . . . . Parts Self-Destructed . | . . . . . . . . . . . . . . . Prevented . | . . . . . . . . . . . . . . . Kills | -11 -10 -10 -10 -9 -8 -8 -8 -7 -6 -6 -5 -4 -4 -3 ------- Run | Scr Mat Min Exi Min Mat Gar Mat Fac Fac Gar Fac Fac DSF Res Combat Hostiles Destroyed 93 | . 9 6 . 10 1 14 4 26 3 9 11 . . . Melee 28 | . . . . . . 1 . 8 3 9 7 . . . Guns 65 | . 9 6 . 10 1 13 4 18 . . 4 . . . Classes Destroyed 16 | . 4 . . 2 1 1 2 3 . 1 1 . . 1 Worker 7 | . . . . . . . 1 5 . . 1 . . . Builder 1 | . . . . . . . . . . . . . . 1 Tunneler 1 | . . . . . . . . . . . 1 . . . Hauler 6 | . 2 . . . . . 4 . . . . . . . Recycler 3 | . . . . 1 . . . 1 . . 1 . . . Operator 2 | . . . . . . . 1 . 1 . . . . . Watcher 1 | . 1 . . . . . . . . . . . . . Swarmer 14 | . 3 4 . 3 . . . 4 . . . . . . Cutter 2 | . . . . . . 2 . . . . . . . . Grunt 56 | . 6 2 . 6 . 10 3 12 3 4 10 . . . Brawler 1 | . . . . . . . . 1 . . . . . . Duelist 2 | . . . . 1 . . . 1 . . . . . . Sentry 8 | . . . . . 1 2 1 2 . 2 . . . . Hunter 3 | . . . . . . . . 2 . 1 . . . . Programmer 6 | . . . . . . . . 4 . . 2 . . . Striker 2 | . . . . . . . . . . 2 . . . . Best Kill Streak 7 | . 3 3 . 3 1 7 4 4 1 3 5 . . 1 Combat Bots Only 7 | . 3 3 . 3 1 7 3 3 1 3 5 . . . Max Kills in Single Turn 2 | . 1 2 . 1 1 2 1 1 1 1 1 . . 1 Gunslinging 1 | . . 1 . . . 1 . . . . . . . . Exploded . | . . . . . . . . . . . . . . . Melee 1 | . . . . . . 1 . 1 1 1 1 . . . Uniques/NPCs Destroyed . | . . . . . . . . . . . . . . . Combat | -11 -10 -10 -10 -9 -8 -8 -8 -7 -6 -6 -5 -4 -4 -3 -------- Run | Scr Mat Min Exi Min Mat Gar Mat Fac Fac Gar Fac Fac DSF Res Damage Taken 13564 | . 163 149 . 253 92 747 367 1905 298 1688 3646 185 1918 2153 Core 4132 | . 36 57 . 50 . 110 64 181 18 543 842 34 889 1308 Absorbed by Shields . | . . . . . . . . . . . . . . . Redirected to Shielding 235 | . . . . . . 55 24 46 . . 110 . . . Core Remaining (%) 50 | 100 . . . 42 . . 68 74 . 34 15 . 19 . Volleys Fired 211 | . 23 12 . 22 5 27 25 65 . . 29 . 3 . Largest 3 | . 2 2 . 2 3 3 3 3 . . 2 . 1 . Hottest 98 | . 46 46 . 46 69 69 69 74 . . 98 . 49 . Shots Fired 468 | . 46 24 1 45 15 80 63 155 . . 36 . 3 . Gun 465 | . 46 24 1 45 15 80 63 155 . . 36 . . . Cannon . | . . . . . . . . . . . . . . . Launcher 3 | . . . . . . . . . . . . . 3 . Special . | . . . . . . . . . . . . . . . Kinetic 456 | . 46 24 1 45 15 80 63 155 . . 27 . . . Thermal 9 | . . . . . . . . . . . 9 . . . Explosive 3 | . . . . . . . . . . . . . 3 . Electromagnetic . | . . . . . . . . . . . . . . . Robot Hit Streak 47 | . 5 16 . 20 35 47 40 35 . . 6 . . . Robot Miss Streak 3 | . 2 2 . 2 . 2 1 3 . . 2 . . . Penetration Max 1 | . . . . . . . . 1 . . 1 . . . Secondary Targets 7 | . . 1 . . . 4 . 1 . . 1 . . . Max Gunslinging Chain 1 | . . 1 . . . 1 . 1 . . 1 . . . Shots Hit Robots 482 | . 29 20 . 35 15 64 52 143 15 50 55 . . 4 Core Hits 208 | . 18 9 . 18 2 32 19 54 7 15 25 . 6 3 Critical Kills 1 | . . . . . . . . . . . 1 . . . Critical Parts Destroyed 3 | . . 1 . . 1 . . . . . 1 . . . Critical Strikes 19 | . . 1 . . 1 1 . 3 4 4 5 . . . Destroy 4 | . . 1 . . 1 . . . . . 2 . . . Sever 15 | . . . . . . 1 . 3 4 4 3 . . . Melee Attacks 194 | . . . . . . 7 . 38 20 70 49 3 1 6 Impact . | . . . . . . . . . . . . . . . Slashing 176 | . . . . . . 7 . 38 20 60 46 3 1 1 Piercing 5 | . . . . . . . . . . . . . . 5 Sneak Attacks 9 | . . . . . . . . 4 1 1 2 . . 1 Combat Hostiles 1 | . . . . . . . . . . 1 . . . . Follow-up Attacks 24 | . . . . . . . . 4 3 12 4 . . 1 Damage Inflicted 10880 | . 445 297 . 535 223 1006 810 2901 604 1298 2144 . 426 191 Guns 5737 | . 427 297 . 535 223 914 810 1824 . . 707 . . . Cannons . | . . . . . . . . . . . . . . . Explosions 426 | . . . . . . . . . . . . . 426 . Melee 4678 | . . . . . . 92 . 1069 604 1298 1435 . . 180 Ramming 39 | . 18 . . . . . . 8 . . 2 . . 11 Kinetic 5551 | . 427 297 . 535 223 914 810 1824 . . 521 . . . Thermal 186 | . . . . . . . . . . . 186 . . . Explosive 426 | . . . . . . . . . . . . . 426 . Electromagnetic . | . . . . . . . . . . . . . . . Impact . | . . . . . . . . . . . . . . . Slashing 4537 | . . . . . . 92 . 1069 604 1298 1435 . . 39 Piercing 141 | . . . . . . . . . . . . . . 141 Highest Corruption 6 | . 1 1 1 1 . . . 4 . . 5 . 6 . Average Corruption 2 | . 1 1 1 1 . . . 4 . . 3 . 4 . Corruption Purged . | . . . . . . . . . . . . . . . Corruption Blocked . | . . . . . . . . . . . . . . . Effects 55 | . 4 2 1 5 . . . 21 . . 19 . 3 . Message Errors 15 | . 2 . . 1 . . . 8 . . 3 . 1 . Matter Fused 14 | . 1 . . . . . . 4 . . 8 . 1 . Heat Flow Errors 5 | . . . . 1 . . . 2 . . 2 . . . Energy Discharges 2 | . . . . . . . . . . . 2 . . . Parts Rejected 2 | . . . . . . . . 1 . . 1 . . . Data Loss (minor) 11 | . 1 1 . 2 . . . 4 . . 2 . 1 . Data Loss (major) 2 | . . . . . . . . 2 . . . . . . Misfires 2 | . . . 1 1 . . . . . . . . . . Alerts 1 | . . 1 . . . . . . . . . . . . Weapon Failures 1 | . . . . . . . . . . . 1 . . . Overload Shots . | . . . . . . . . . . . . . . . Overflow Damage 113 | . . . . . . . . 60 . 8 45 . . . Projectiles . | . . . . . . . . . . . . . . . Explosions . | . . . . . . . . . . . . . . . Melee 113 | . . . . . . . . 60 . 8 45 . . . Knockbacks . | . . . . . . . . . . . . . . . Impact . | . . . . . . . . . . . . . . . Kinetic . | . . . . . . . . . . . . . . . Secondary . | . . . . . . . . . . . . . . . Self-Inflicted Damage 31 | . . . . . . . . . . . . . 26 5 Shots 1 | . . . . . . . . . . . . . 1 . Rammed 6 | . 2 . . . . . . 2 . . . . . 2 Targets Rammed 8 | . 2 . . . . . . 3 . . 1 . . 2 Kicked 1 | . . . . . . . . . . . 1 . . . Crushed 1 | . . . . . . . . 1 . . . . . . Highest Temperature 258 | . 4 5 . 107 81 121 16 258 1 1 128 7 . . Average Temperature 32 | . 2 2 . 21 36 46 6 32 1 1 40 1 . . Received Heat Transfer 3265 | . 75 48 . 150 63 387 198 636 162 285 1195 . 45 21 Siege Activations . | . . . . . . . . . . . . . . . Robots Corrupted . | . . . . . . . . . . . . . . . Combat Hostiles . | . . . . . . . . . . . . . . . Parts Fried . | . . . . . . . . . . . . . . . Impact Corruptions . | . . . . . . . . . . . . . . . Robots Melted . | . . . . . . . . . . . . . . . Combat Hostiles . | . . . . . . . . . . . . . . . Parts Melted . | . . . . . . . . . . . . . . . Heat Transferred 222 | . . . . . . . . . . . 222 . . . Parts Sabotaged . | . . . . . . . . . . . . . . . Parts Stolen . | . . . . . . . . . . . . . . . Parts Stripped . | . . . . . . . . . . . . . . . Power Chain Reactions . | . . . . . . . . . . . . . . . Missiles Intercepted . | . . . . . . . . . . . . . . . Alert | -11 -10 -10 -10 -9 -8 -8 -8 -7 -6 -6 -5 -4 -4 -3 ------- Run | Scr Mat Min Exi Min Mat Gar Mat Fac Fac Gar Fac Fac DSF Res Peak Influence 641 | . 229 200 . 175 74 577 586 430 385 641 366 27 129 78 Initial 304 | . . 45 . . 29 50 280 112 210 269 304 . 18 63 Average 212 | . 75 95 . 90 40 277 381 239 326 450 117 11 68 48 Maximum Alert Level 2 | . 1 1 . . . 2 2 2 1 2 1 . . . Low Security (%) 48 | . 98 81 . 100 100 32 . 29 . . 68 100 100 100 Level 1 42 | . 1 18 . . . 47 79 65 100 48 31 . . . Level 2 9 | . . . . . . 20 20 5 . 51 . . . . Level 3 . | . . . . . . . . . . . . . . . Level 4 . | . . . . . . . . . . . . . . . Level 5 . | . . . . . . . . . . . . . . . High Security . | . . . . . . . . . . . . . . . Max Security . | . . . . . . . . . . . . . . . Squads Dispatched 19 | . 1 . . . . . 2 7 2 . 3 . 2 2 Investigation 4 | . . . . . . . 1 1 . . 2 . . . Extermination 6 | . . . . . . . . 4 1 . 1 . . . Reinforcement 8 | . 1 . . . . . 1 1 1 . . . 2 2 Assault 1 | . . . . . . . . 1 . . . . . . Garrison . | . . . . . . . . . . . . . . . Intercept . | . . . . . . . . . . . . . . . Searches Triggered . | . . . . . . . . . . . . . . . Construction Impeded 1 | . . . . . . . . . . . . . . 1 Haulers Reinforced . | . . . . . . . . . . . . . . . Active Scanning Responses . | . . . . . . . . . . . . . . . Cargo Convoy Interrupts . | . . . . . . . . . . . . . . . Stealth | -11 -10 -10 -10 -9 -8 -8 -8 -7 -6 -6 -5 -4 -4 -3 --------- Run | Scr Mat Min Exi Min Mat Gar Mat Fac Fac Gar Fac Fac DSF Res Distress Signals 4 | . . . . . . . 1 2 . . 1 . . . Communications Jammed . | . . . . . . . . . . . . . . . Distress Signals . | . . . . . . . . . . . . . . . Times Spotted 192 | . 14 7 . 11 3 24 15 36 7 21 25 . 10 19 Peak Tracking Total 17 | . 3 3 . 3 2 6 4 6 3 6 6 . 9 17 Tactical Retreats 17 | . . . . 1 . 2 1 1 2 3 3 . 3 1 Traps | -11 -10 -10 -10 -9 -8 -8 -8 -7 -6 -6 -5 -4 -4 -3 ------- Run | Scr Mat Min Exi Min Mat Gar Mat Fac Fac Gar Fac Fac DSF Res Traps Triggered 15 | . 1 . . . . 4 3 1 . 1 3 1 1 . Indirectly . | . . . . . . . . . . . . . . . Trap Hack Attempts 56 | . . . . . . . . . . 56 . . . . Triggered . | . . . . . . . . . . . . . . . Disarmed . | . . . . . . . . . . . . . . . Reprogrammed 5 | . . . . . . . . . . 5 . . . . Reused . | . . . . . . . . . . . . . . . Traps Extracted . | . . . . . . . . . . . . . . . Installed . | . . . . . . . . . . . . . . . Triggered . | . . . . . . . . . . . . . . . Machines | -11 -10 -10 -10 -9 -8 -8 -8 -7 -6 -6 -5 -4 -4 -3 ---------- Run | Scr Mat Min Exi Min Mat Gar Mat Fac Fac Gar Fac Fac DSF Res Machines Disabled 9 | . . 2 . . . . . 1 . 3 1 . 1 1 Max in Single Turn 1 | . . 1 . . . . . 1 . 1 . . 1 1 Garrison Access 2 | . . . . . . . . 1 . . . 1 . . Garrison Relay 2 | . . . . . . . . . . 2 . . . . Machines Sabotaged . | . . . . . . . . . . . . . . . Garrisons Compromised . | . . . . . . . . . . . . . . . Overloaded Fab Kills . | . . . . . . . . . . . . . . . Hacking | -11 -10 -10 -10 -9 -8 -8 -8 -7 -6 -6 -5 -4 -4 -3 --------- Run | Scr Mat Min Exi Min Mat Gar Mat Fac Fac Gar Fac Fac DSF Res Machines Accessed 33 | . 3 . 2 . 1 2 2 3 3 2 12 3 . . Terminals 24 | . 3 . . . . 2 2 3 1 2 9 2 . . Fabricators 4 | . . . . . . . . . 1 . 3 . . . Repair Stations . | . . . . . . . . . . . . . . . Recycling Units . | . . . . . . . . . . . . . . . Scanalyzers . | . . . . . . . . . . . . . . . Garrison Access 3 | . . . . . 1 . . . 1 . . 1 . . Total Hacks 61 | . 6 . 2 . 1 3 4 5 7 7 22 4 . . Successful 36 | . 4 . 2 . 1 2 3 1 3 1 16 3 . . Failed 25 | . 2 . . . . 1 1 4 4 6 6 1 . . Catastrophic 5 | . . . . . . . . . 1 . 3 1 . . Database Lockouts . | . . . . . . . . . . . . . . . Manual 27 | . 5 . . . . . 5 2 4 . 10 1 . . Terminals 50 | . 6 . . . . 3 4 5 4 7 18 3 . . Fabricators 6 | . . . . . . . . . 2 . 4 . . . Repair Stations . | . . . . . . . . . . . . . . . Recycling Units . | . . . . . . . . . . . . . . . Scanalyzers . | . . . . . . . . . . . . . . . Garrison Access 3 | . . . . . 1 . . . 1 . . 1 . . Terminal Hacks 17 | . 1 . 2 . . 2 1 . . 1 9 1 . . Record 4 | . . . 2 . . . . . . . 2 . . . Part Schematic 1 | . . . . . . . . . . . 1 . . . Robot Schematic 1 | . . . . . . . . . . . 1 . . . Open Door 1 | . . . . . . 1 . . . . . . . . Open DSF 2 | . . . . . . . . . . . 1 1 . . Branch Access Points 1 | . 1 . . . . . . . . . . . . . Emergency Access Points 2 | . . . . . . 1 . . . 1 . . . . Fabricator Index 1 | . . . . . . . . . . . 1 . . . Unreport Threat 2 | . . . . . . . 1 . . . 1 . . . Locate Traps 2 | . . . . . . . . . . . 2 . . . Fabricator Hacks 3 | . . . . . . . . . . . 3 . . . Load Schematic 1 | . . . . . . . . . . . 1 . . . Build 2 | . . . . . . . . . . . 2 . . . Repair Station Hacks . | . . . . . . . . . . . . . . . Recycling Unit Hacks . | . . . . . . . . . . . . . . . Scanalyzer . | . . . . . . . . . . . . . . . Garrison Access Hacks 3 | . . . . . 1 . . . 1 . . 1 . . Unlock Access 2 | . . . . . 1 . . . 1 . . . . . Seal Access 1 | . . . . . . . . . . . . 1 . . Unauthorized Hacks 13 | . 3 . . . . . 2 1 2 . 4 1 . . Terminals 12 | . 3 . . . . . 2 1 2 . 3 1 . . Track 1 | . . . . . . . . . 1 . . . . . Botnet 11 | . 3 . . . . . 2 1 1 . 3 1 . . Fabricators 1 | . . . . . . . . . . . 1 . . . Fabnet 1 | . . . . . . . . . . . 1 . . . Repair Stations . | . . . . . . . . . . . . . . . Recycling Units . | . . . . . . . . . . . . . . . Scanalyzers . | . . . . . . . . . . . . . . . Garrison Access . | . . . . . . . . . . . . . . . Data Cores Recovered . | . . . . . . . . . . . . . . . Used . | . . . . . . . . . . . . . . . Hacking Detections 21 | . 3 . . . . . 2 3 2 2 8 1 . . Full Trace Events 4 | . . . . . . . . . . 2 2 . . . Feedback Events . | . . . . . . . . . . . . . . . Feedback Blocked . | . . . . . . . . . . . . . . . Robot Schematics Acquired 1 | . . . . . . . . . . . 1 . . . Robots Built . | . . . . . . . . . . . . . . . Authchips . | . . . . . . . . . . . . . . . Time . | . . . . . . . . . . . . . . . Total Robot Build Rating . | . . . . . . . . . . . . . . . Part Schematics Acquired 1 | . . . . . . . . . . . 1 . . . Parts Built 3 | . . . . . . . . . . . 3 . . . Authchips . | . . . . . . . . . . . . . . . Time 203 | . . . . . . . . . . . 203 . . . Total Part Build Rating 26 | . . . . . . . . . . . 26 . . . Parts Repaired . | . . . . . . . . . . . . . . . Time . | . . . . . . . . . . . . . . . Parts Recycled . | . . . . . . . . . . . . . . . Recycled Matter . | . . . . . . . . . . . . . . . Retrieved Matter . | . . . . . . . . . . . . . . . Retrieved Components . | . . . . . . . . . . . . . . . Parts Scanalyzed . | . . . . . . . . . . . . . . . Part Schematics Acquired . | . . . . . . . . . . . . . . . Parts Damaged . | . . . . . . . . . . . . . . . Bothacking | -11 -10 -10 -10 -9 -8 -8 -8 -7 -6 -6 -5 -4 -4 -3 ------------ Run | Scr Mat Min Exi Min Mat Gar Mat Fac Fac Gar Fac Fac DSF Res Used RIF Installer 1 | . . . . . . 1 . . . . . . . . Robots Hacked 11 | . . . . . . . . . . 7 3 . . 1 Non-combat . | . . . . . . . . . . . . . . . Combat 11 | . . . . . . . . . . 7 3 . . 1 Robot Hacks Applied 10 | . . . . . . . . . . 7 3 . . . spike_heat 1 | . . . . . . . . . . . 1 . . . overwrite_iff 2 | . . . . . . . . . . 1 1 . . . streamctrl_high 1 | . . . . . . . . . . 1 . . . . formatsys_high 6 | . . . . . . . . . . 5 1 . . . Relay Couplers Released 11 | . . . . . . . . 2 . 9 . . . . Machine Destruction 11 | . . . . . . . . 2 . 9 . . . . Attached 5 | . . . . . . . . . . 4 1 . . . Fabnet Peak Effective % 3 | . . . . . . . . . . . . 3 3 1 Autooverrided 1 | . . . . . . . . . . . . . . 1 Robots Rewired 9 | . . . . . . 7 . . . 2 . . . . Allies Hacked . | . . . . . . . . . . . . . . . Hacks Repelled . | . . . . . . . . . . . . . . . Allies | -11 -10 -10 -10 -9 -8 -8 -8 -7 -6 -6 -5 -4 -4 -3 -------- Run | Scr Mat Min Exi Min Mat Gar Mat Fac Fac Gar Fac Fac DSF Res Total Allies 19 | . . . . . . 7 . . . 9 2 . . 1 Largest Group 5 | . . . . . . 5 4 . . 2 3 . . 1 Highest-Rated Group 238 | . . . . . . 117 97 . . 238 238 . . 56 Highest-Rated Ally 119 | . . . . . . 31 25 . . 119 119 . . 56 Total Orders . | . . . . . . . . . . . . . . . Ally Attacks 101 | . . . . . . 29 34 . . 27 7 . . 4 Total Damage 2592 | . . . . . . 776 845 . . 545 341 . . 85 Kills 27 | . . . . . . 10 12 . . 2 3 . . . Allies Corrupted . | . . . . . . . . . . . . . . . Allies Melted . | . . . . . . . . . . . . . . . Intel | -11 -10 -10 -10 -9 -8 -8 -8 -7 -6 -6 -5 -4 -4 -3 ------- Run | Scr Mat Min Exi Min Mat Gar Mat Fac Fac Gar Fac Fac DSF Res Robot Analysis Total . | . . . . . . . . . . . . . . . Derelict Logs Recovered 3 | . . 2 . 1 . . . . . . . . . . Drone Launches . | . . . . . . . . . . . . . . . Drone Recoveries . | . . . . . . . . . . . . . . . Exploration | -11 -10 -10 -10 -9 -8 -8 -8 -7 -6 -6 -5 -4 -4 -3 ------------- Run | Scr Mat Min Exi Min Mat Gar Mat Fac Fac Gar Fac Fac DSF Res Turns Passed 8636 | . 785 450 308 543 164 718 814 2178 262 725 1252 140 164 133 Spaces Moved 5239 | 1 398 247 193 287 81 326 428 1157 145 364 1070 228 170 144 Core 94 | . . . . . . . . . . . 3 . 49 42 Treads 2625 | . 379 247 193 287 81 326 428 684 . . . . . . Legs 1299 | 1 19 . . . . . . 230 145 283 606 . 15 . Wheels 416 | . . . . . . . . 243 . 81 90 . . 2 Hover 718 | . . . . . . . . . . . 371 228 32 87 Flight 87 | . . . . . . . . . . . . . 74 13 Fastest Speed 34 | 120 120 160 160 160 160 160 160 110 120 110 50 45 34 37 Average Speed 127 | 120 158 160 160 160 160 160 160 141 120 120 89 53 62 74 Slowest Speed 250 | 120 160 160 160 160 160 160 240 240 120 125 200 108 150 250 Overloaded Moves . | . . . . . . . . . . . . . . . Propulsion Burnouts . | . . . . . . . . . . . . . . . Robots Hopped 1 | . . . . . . . . . . . . . 1 . Cave-ins Triggered . | . . . . . . . . . . . . . . . Exploration Rate (%) 37 | 2 84 42 55 68 11 44 44 30 3 47 26 7 94 9 Regions Visited 14 Branch Regions 3 Pre-discovered Areas 1 | . . . . 1 . . . . . . . . . . Known Exits Taken 7 | . 1 . . . 1 . 1 1 1 . 1 1 . . Unknown Exits Taken 4 | 1 . 1 1 1 . . . . . . . . . . Scrap Searched 1 | . . . . 1 . . . . . . . . . . Spaces Dug 32 | . . . . . . . . 1 . . 4 3 23 1 Terrain Destroyed 77 | . . . . . . . . 1 . . 8 3 64 1 Melee 9 | . . . . . . . . 1 . . 4 3 . 1 Projectile 4 | . . . . . . . . . . . 4 . . . AOE 64 | . . . . . . . . . . . . . 64 . Terrain Rammed . | . . . . . . . . . . . . . . . Walls Destroyed . | . . . . . . . . . . . . . . . Machines Disabled . | . . . . . . . . . . . . . . . Actions | -11 -10 -10 -10 -9 -8 -8 -8 -7 -6 -6 -5 -4 -4 -3 --------- Run | Scr Mat Min Exi Min Mat Gar Mat Fac Fac Gar Fac Fac DSF Res Total 6542 | . 514 278 192 327 102 450 502 1519 209 569 1253 244 223 160 Wait 429 | . 66 18 . 16 4 12 17 203 36 16 33 . 8 . Move 5224 | . 397 246 192 286 81 325 427 1156 144 363 1069 227 167 144 Hop 1 | . . . . . . . . . . . . . 1 . Pick Up 88 | . 8 . . 2 7 3 7 17 2 7 20 4 10 1 Fast Attach 68 | . 4 1 . . 2 1 10 6 . 3 26 2 11 2 Attach 55 | . . . . 1 2 3 3 11 3 5 16 2 5 4 Detach 19 | . 2 1 . . . . . 2 1 2 4 2 4 1 Swap 46 | . 2 . . . 1 2 3 15 4 14 5 . . . Drop 66 | . 10 . . . . . 10 11 3 7 8 4 12 1 Fire 211 | . 23 12 . 22 5 27 25 65 . . 29 . 3 . Melee 158 | . . . . . . 7 . 30 16 54 42 3 1 5 Ram 2 | . . . . . . . . . . . . . . 2 Kick 1 | . . . . . . . . . . . 1 . . . Crush 5 | . 2 . . . . . . 3 . . . . . . Escape Stasis 8 | . . . . . . . . . . 8 . . . . Rewire 105 | . . . . . . 70 . . . 34 . . 1 . Trap 56 | . . . . . . . . . . 56 . . . . Miscellaneous . | . . . . . . . . . . . . . . . Route ------- -11/Scrapyard -10/Materials (discovered 3 exits: [*Mat] / *Min x2) -10/Mines -10/Exiles (discovered 2 exits: [*Min x2]) -9/Mines -8/Materials (discovered 2 exits: Fac / Gar) -8/Garrison -8/Materials (discovered 3 exits: *Fac / [*Sto x2]) -7/Factory (discovered 3 exits: *Fac / *Low x2) -6/Factory -6/Garrison -5/Factory (discovered 2 exits: *Fac x2) -4/Factory -4/DSF -3/Research History --------- Turn | Location | Event 1 | -11/Scrapyard | Discovered new exit (range 0) 1 | -11/Scrapyard | Entered Materials 232 | -10/Materials | Discovered new exit (range 18) 312 | -10/Materials | Build established: Mutant 347 | -10/Materials | Identified exit to Mines 639 | -10/Materials | Discovered new exit (range 8) 786 | -10/Materials | Entered Mines 799 | -10/Mines | Met a Derelict bent on vengeance 806 | -10/Mines | Learned 4 Materials zone layouts 899 | -10/Mines | Joined a pair of Derelicts in attacking an 0b10 outpost 920 | -10/Mines | Learned Materials terminal intel 1228 | -10/Mines | Deemed a non-threat by the Exiles lab entrance 1230 | -10/Mines | Discovered new exit (range 5) 1236 | -10/Mines | Entered Exiles 1236 | -10/Exiles | Found Exiles lab abandoned 1261 | -10/Exiles | Discovered new exit (range 15) 1528 | -10/Exiles | Discovered new exit (range 11) 1544 | -10/Exiles | Entered Mines 1744 | -9/Mines | Core integrity fell below 50% 1759 | -9/Mines | Learned location of Zion (-6) 2079 | -9/Mines | Discovered new exit (range 6) 2087 | -9/Mines | Entered Materials 2087 | -8/Materials | Evolved 4 slots: Propulsion x1, Utility x2, Weapon x1 2088 | -8/Materials | Identified exit to Factory 2089 | -8/Materials | Loaded intel: 12 terminal locations 2251 | -8/Materials | Identified exit to Garrison 2251 | -8/Materials | Entered Garrison 2284 | -8/Garrison | Triggered checkpoint 2414 | -8/Garrison | Triggered checkpoint 2436 | -8/Garrison | Build established: Tank 2539 | -8/Garrison | Destroyed 7 combat bots 2545 | -8/Garrison | Lost 5 parts (2n3u) 2586 | -8/Garrison | Triggered checkpoint 2732 | -8/Garrison | Triggered checkpoint 2817 | -8/Garrison | Installed Relay Interface Framework 2834 | -8/Garrison | Triggered checkpoint 2916 | -8/Garrison | Triggered checkpoint 2942 | -8/Garrison | Discovered new exit (range 14) 2969 | -8/Garrison | Entered Materials 2969 | -8/Materials | Accompanied by 4 allies 3199 | -8/Materials | Discovered new exit (range 3) 3360 | -8/Materials | Discovered new exit (range 10) 3507 | -8/Materials | Build established: Gunner 3656 | -8/Materials | Discovered exit to Factory (range 10) 3783 | -8/Materials | Entered Factory 3783 | -7/Factory | Evolved 2 slots: Propulsion x1, Utility x1 4912 | -7/Factory | Build established: Mutant 5324 | -7/Factory | Discovered new exit (range 12) 5418 | -7/Factory | Discovered new exit (range 12) 5499 | -7/Factory | Lost 5 parts (1p1n2u1w) 5504 | -7/Factory | Identified exit to Lower Caves 5762 | -7/Factory | Build established: Scavenger-Mutant 5937 | -7/Factory | Discovered new exit (range 5) 5941 | -7/Factory | Identified exit to Factory 5961 | -7/Factory | Entered another Factory area 5961 | -6/Factory | Evolved 2 slots: Utility x2 6157 | -6/Factory | Identified exit to Garrison 6223 | -6/Factory | Entered Garrison 6273 | -6/Garrison | Garrison Relay disabled 6280 | -6/Garrison | Triggered checkpoint 6345 | -6/Garrison | Triggered checkpoint 6454 | -6/Garrison | Triggered checkpoint 6530 | -6/Garrison | Triggered checkpoint 6654 | -6/Garrison | Triggered checkpoint 6673 | -6/Garrison | Garrison Relay disabled 6708 | -6/Garrison | Discovered new exit (range 4) 6710 | -6/Garrison | Identified exit to Factory 6729 | -6/Garrison | Spotted Striker 6729 | -6/Garrison | Spotted Striker 6752 | -6/Garrison | Destroyed Striker 6787 | -6/Garrison | Core integrity fell below 50% 6795 | -6/Garrison | Destroyed Striker 6817 | -6/Garrison | Lost 8 parts (1p4n2u1w) 6843 | -6/Garrison | Rewired Executioner 6865 | -6/Garrison | Rewired Executioner 6948 | -6/Garrison | Entered Factory 6948 | -5/Factory | Accompanied by 2 allies 6948 | -5/Factory | Evolved 2 slots: Utility x2 7200 | -5/Factory | Allies destroyed Executioner 7243 | -5/Factory | Found Prototype Processor 7243 | -5/Factory | Identified Exp. Core Analyzer 7245 | -5/Factory | Found Prototype Processor 7245 | -5/Factory | Identified Exp. Targeting Computer 7254 | -5/Factory | Lost 4 parts (1n2u1w) 7321 | -5/Factory | Discovered new exit (range 8) 7329 | -5/Factory | Identified exit to Factory 7496 | -5/Factory | Fabricated Enh. Quantum Rifle? 7588 | -5/Factory | Lost 4 parts (1p1n2u) 7802 | -5/Factory | Core integrity fell below 50% 7824 | -5/Factory | Lost 13 parts (2p4n6u1w) 7855 | -5/Factory | Core integrity fell below 20% 7885 | -5/Factory | Lost 5 parts (1p1n1u2w) 8192 | -5/Factory | Discovered exit to Factory (range 15) 8197 | -5/Factory | Fabricated Impulse Thruster Array? 8200 | -5/Factory | Entered another Factory area 8200 | -4/Factory | Evolved 2 slots: Utility x2 8340 | -4/Factory | Identified exit to DSF 8340 | -4/Factory | Entered DSF 8365 | -4/DSF | Discovered new exit (range 11) 8376 | -4/DSF | Additional patrols routed to DSF 8397 | -4/DSF | Core integrity fell below 50% 8441 | -4/DSF | Lost 10 parts (1p3n3u3w) 8485 | -4/DSF | Core integrity fell below 20% 8496 | -4/DSF | Identified exit to Research 8504 | -4/DSF | Entered Research 8504 | -3/Research | Evolved 2 slots: Power x1, Utility x1 8616 | -3/Research | Core integrity fell below 50% 8632 | -3/Research | Core integrity fell below 20% 8637 | -3/Research | Destroyed by H-77 Assassin with Coil Gun Last Messages --------------- 08589_ Lgt. Antimatter Reactor destroyed. 08590_ Cmb. Gravmag System destroyed. 08592_ Slug penetrates Wall. 08600_ Sneak attack on U-05 Engineer. 08600_ U-05 Engineer destroyed. 08603_ Acquired 11 matter. 08605_ Acquired Wheel. 08608_ Wheel destroyed. 08611_ Cmb. Gravmag System destroyed. 08614_ Adv. Actuator Array destroyed. 08615_ Force Lance destroyed. 08615_ K-01 Serf destroyed. 08617_ Slammed into S-43 Plague. 08620_ Slug penetrates S-43 Plague. 08620_ Penetrated by Slug. 08631_ Slug penetrates Wall. 08637_ Slug penetrates Scanalyzer. 08637_ Penetrated by Slug. 08637_ Slug penetrates Wall. 08637_ Penetrated by Slug. Map ----- +----------------------------------------------------+ | ?????????????????????????????????????????????????? | | ?????????????????????????????????????????????????? | | ?????????????????????????????????????????????????? | | ?????????????????????????????????????????????????? | | ?????????????????????????????????????????????????? | | ?????????????????????????????????????????????????? | | ??????????????????????????????????????# ?????????? | | ??????????????????????????????????????# ?????????? | | ??????????????????????????????????????# ?????????? | | ???######+############################# ##???????? | | ??? #???????? | | ?? %! #???????? | | ?? /???????? | | ?? %* #???????? | | ??????###+######"######### ####+##### #???????? | | ??????????????# #?# #????????# #???????? | | ??????????????# #?#h#????????# ######### | | ??????????????# #?#s#????????# | | ??????????????# #?# #????????# | | ??????????????# ###/########## | | ??????????????# ! ! # !h ! # | | ??????????????# #hs # ######### | | ??????????????# s """ # #???????? | | ??????????????# ! # """ # #???????? | | ??????????????########## """ "" # #???????? | | ???????????????????????# @""" " #???????? | | ???????????????????????# """ # #????#### | | ???????????????????????# "S """ + #????# | | ???????????????????????# "" """ ######????# | | ???????????????????????# "" """ #?????????#! | | ???????????????????????# |#?????????# | | ???????????????????????# #?????????# !! | | ???????????????????????##############?????????# !! | | ??????????????????????????????????????????????# !! | | ??????????????????????????????????????????????#### | | ????????????????????????????????????????????????# | | ????????????????????????????????????????????????# | | ????????????????????????????????????????????????# | | ????????????????????????????????????????????????# | | ????????????????????????????????????????????????# | | ????????????????????????????????????????????????# | | ????????????????????????????????????????????????# | | ????????????????????????????????????????????????# | | ????????????????????????????????????????????????## | | ?????????????????????????????????????????????????? | | ?????????????????????????????????????????????????? | | ?????????????????????????????????????????????????? | | ?????????????????????????????????????????????????? | | ?????????????????????????????????????????????????? | | ?????????????????????????????????????????????????? | +----------------------------------------------------+ Best States ------------- Heat Dissipation 46 Energy Generation 29 Energy Capacity 350 Matter Stores 300 Matter Capacity 300 Sight Range 18 Robot Scan Range 16 Terrain Scan Density 10 ECM Strength 1 Jamming Range 16 Additional Mass Support 9 Armor Coverage 375 Core Shielding 30 Propulsion Shielding 33 Weapon Shielding 66 Evasion (%) 66 Targeting Accuracy 12 Melee Accuracy 5 Target Analysis 6 Core Analysis 8 Recoil Reduction 3 Offensive Hacking 20 Defensive Hacking 10 Relay Coupler Types 2 Relay Coupler Value 34 Item Schematics ----------------- Impulse Thruster Array | -5/Factory | Hacked Robot Schematics ------------------ L-41 Fighter | -5/Factory | Hacked Fabricated ------------ Enh. Quantum Rifle | x2 | -5/Factory | Preloaded Impulse Thruster Array | x1 | -5/Factory Alien Tech Used ----------------- None Achievements -------------- Hehehe Challenges ------------ None Game ------ Seed LauncherCryofiberGun Manual? 0 Play Time 01:26:17 Cumulative 70.7 hours Start 2022.07.06 @ 19:00:35 End 2022.07.06 @ 21:47:26 Sessions 1 Manual Loads 0 Difficulty Rogue Special Mode None Game No. 107 Rogue 107 Adventurer 0 Explorer 0 Win Type - Total 1 Types 1/0/0/0/0/0/0/0/0 Lore% 38 Gallery% 42 Achievement% 35 Wizard Run 0 Options --------- ASCII 0 Keyboard 1 Movement Vi Keybinds 1 Fullscreen 1 Font 24/Smallcaps Map View 76x50 Tactical HUD 1 Map Filters NONE Filters NONE Steam 1 RUN: a901cd12-0bf2-4be2-bf84-64c52987ced8